fUST/lending_fUST_20240525
["ID","MTS","AMOUNT","RATE_DAILY","PERIOD"]
[327877892,1716574244657,-500.0,0.00025479,5]
[327877893,1716574244667,-500.0,0.00025479,5]
[327877894,1716574244677,-613.44,0.00025479,5]
[327877896,1716574244686,-4510.73,0.00025479,5]
[327877898,1716574244696,-1401.54,0.00025479,5]
[327877899,1716574244706,-500.0,0.00025479,5]
[327877900,1716574244716,-500.0,0.00025479,5]
[327877901,1716574244726,-500.0,0.00025479,5]
[327877902,1716574244735,-1206.14169445,0.00025752,14]
[327877903,1716574244853,-500.0,0.00019991,2]
[327877904,1716574244864,-989.17830555,0.00025752,14]
[327877905,1716574244874,-250.0,0.00025753,6]
[327877906,1716574244884,-500.0,0.00025753,6]
[327877907,1716574244897,-500.0,0.00025753,6]
[327877908,1716574244906,-500.0,0.00025753,6]
[327877909,1716574244916,-500.0,0.00025753,6]
[327877910,1716574244924,-261.52406954,0.00025753,6]
[327877911,1716574244933,-500.0,0.00025753,6]
[327877912,1716574244943,-500.0,0.00025753,6]
[327877913,1716574244952,-500.0,0.00025753,6]
[327877914,1716574245094,-691.71,0.00025753,6]
[327877915,1716574245105,-500.0,0.00025753,6]
[327877916,1716574245115,-500.0,0.00025753,6]
[327877917,1716574245125,-500.0,0.00025753,6]
[327877918,1716574245135,-587.64,0.00025753,6]
[327877919,1716574245144,-328.07052892,0.00025753,6]
[327877920,1716574245359,-500.0,0.00024657,2]
[327877922,1716574245369,-171.92947108,0.00025753,6]
[327877924,1716574245379,-500.0,0.00025753,6]
[327877925,1716574245389,-500.0,0.00025753,6]
[327877926,1716574245398,-634.77,0.00025753,6]
[327877927,1716574245407,-500.0,0.00025753,6]
[327877928,1716574245416,-500.0,0.00025753,6]
[327877929,1716574245426,-661.81,0.00025753,6]
[327877930,1716574245435,-500.0,0.00025753,6]
[327877931,1716574245445,-500.0,0.00025753,6]
[327877932,1716574245454,-162.16,0.00025753,6]
[327877933,1716574245463,-2846.28,0.00025753,6]
[327877934,1716574245472,-808.03,0.00025753,6]
[327877935,1716574245481,-3577.07,0.00025753,6]
[327877936,1716574245491,-500.0,0.00025753,6]
[327877937,1716574245500,-500.0,0.00025753,6]
[327877938,1716574245512,-506.88,0.00025753,6]
[327877939,1716574245521,-1250.13,0.00025753,6]
[327877940,1716574245530,-500.0,0.00025753,6]
[327877941,1716574245539,-500.0,0.00025753,6]
[327877942,1716574245549,-549.44,0.00025753,6]
[327877943,1716574245558,-553.03,0.00025753,6]
[327877944,1716574245567,-1250.38,0.00025753,6]
[327877945,1716574245576,-504.09,0.00025753,6]
[327877946,1716574245585,-500.0,0.00025753,6]
[327877947,1716574245595,-500.0,0.00025753,6]
[327877948,1716574245604,-626.0,0.00025753,6]
[327877949,1716574245614,-500.0,0.00025753,6]
[327877950,1716574245623,-839.12,0.00025753,6]
[327877951,1716574245633,-4212.77,0.00025753,6]
[327877952,1716574245642,-500.0,0.00025753,6]
[327877953,1716574245651,-500.0,0.00025753,6]
[327877954,1716574245661,-613.44,0.00025753,6]
[327877955,1716574245670,-4510.73,0.00025753,6]
[327877956,1716574245680,-1401.54,0.00025753,6]
[327877957,1716574245690,-500.0,0.00025753,6]
[327877958,1716574245700,-500.0,0.00025753,6]
[327877959,1716574245709,-500.0,0.00025753,6]
[327877960,1716574245719,-711.19338393,0.00025802,2]
[327877961,1716574245728,-150.0,0.00025848,2]
[327877962,1716574245738,-2195.32,0.00026026,15]
[327877963,1716574245748,-286.41,0.00026027,7]
[327877964,1716574245758,-500.0,0.00026027,7]
[327877965,1716574245767,-531.45084273,0.00026027,7]
[327877966,1716574245776,-500.0,0.00026027,7]
[327877967,1716574245785,-500.0,0.00026027,7]
[327877968,1716574245794,-291.11,0.00026027,7]
[327877969,1716574245804,-500.0,0.00026027,7]
[327877970,1716574245817,-500.0,0.00026027,7]
[327877971,1716574245826,-691.71,0.00026027,7]
[327877972,1716574245836,-500.0,0.00026027,7]
[327877973,1716574245846,-500.0,0.00026027,7]
[327877974,1716574245856,-637.15,0.00026027,7]
[327877975,1716574245865,-587.64,0.00026027,7]
[327877976,1716574245874,-500.0,0.00026027,7]
[327877977,1716574245886,-500.0,0.00026027,7]
[327877978,1716574245895,-500.0,0.00026027,7]
[327877979,1716574245904,-634.77,0.00026027,7]
[327877980,1716574245914,-500.0,0.00026027,7]
[327877981,1716574245924,-500.0,0.00026027,7]
[327877982,1716574245934,-661.81,0.00026027,7]
[327877983,1716574245943,-500.0,0.00026027,7]
[327877984,1716574245953,-500.0,0.00026027,7]
[327877985,1716574245962,-2846.28,0.00026027,7]
[327877986,1716574245971,-808.03,0.00026027,7]
[327877987,1716574245981,-3577.07,0.00026027,7]
[327877988,1716574245990,-500.0,0.00026027,7]
[327877989,1716574246000,-500.0,0.00026027,7]
[327877990,1716574246011,-506.88,0.00026027,7]
[327877991,1716574246021,-1250.13,0.00026027,7]
[327877992,1716574246030,-500.0,0.00026027,7]
[327877993,1716574246039,-500.0,0.00026027,7]
[327877994,1716574246048,-549.44,0.00026027,7]
[327877995,1716574246058,-553.03,0.00026027,7]
[327877996,1716574246067,-1250.38,0.00026027,7]
[327877997,1716574246077,-504.09,0.00026027,7]
[327877998,1716574246086,-500.0,0.00026027,7]
[327877999,1716574246095,-500.0,0.00026027,7]
[327878000,1716574246104,-626.0,0.00026027,7]
[327878001,1716574246114,-500.0,0.00026027,7]
[327878002,1716574246124,-839.12,0.00026027,7]
[327878003,1716574246133,-4212.77,0.00026027,7]
[327878004,1716574246142,-500.0,0.00026027,7]
[327878005,1716574246152,-500.0,0.00026027,7]
[327878006,1716574246161,-613.44,0.00026027,7]
[327878008,1716574246170,-4510.73,0.00026027,7]
[327878009,1716574246179,-1401.54,0.00026027,7]
[327878010,1716574246189,-473.69,0.00026027,7]
[327878011,1716574246199,-500.0,0.00026027,7]
[327878012,1716574246208,-500.0,0.00026027,7]
[327878013,1716574246217,-1000.0,0.00026236,2]
[327878014,1716574246226,-1000.0,0.00026265,2]
[327878015,1716574246235,-1000.0,0.00026277,2]
[327878016,1716574246245,-1000.0,0.00026289,2]
[327878017,1716574246256,-2195.32,0.000263,16]
[327878018,1716574246264,-500.0,0.00026301,8]
[327878019,1716574246273,-500.0,0.00026301,8]
[327878020,1716574246282,-500.0,0.00026301,8]
[327878021,1716574246290,-500.0,0.00026301,8]
[327878022,1716574246299,-691.71,0.00026301,8]
[327878023,1716574246309,-500.0,0.00026301,8]
[327878024,1716574246318,-500.0,0.00026301,8]
[327878025,1716574246328,-587.64,0.00026301,8]
[327878026,1716574246338,-500.0,0.00026301,8]
[327878027,1716574246347,-500.0,0.00026301,8]
[327878028,1716574246356,-500.0,0.00026301,8]
[327878029,1716574246365,-634.77,0.00026301,8]
[327878030,1716574246374,-500.0,0.00026301,8]
[327878031,1716574246383,-500.0,0.00026301,8]
[327878032,1716574246392,-661.81,0.00026301,8]
[327878033,1716574246401,-500.0,0.00026301,8]
[327878034,1716574246411,-500.0,0.00026301,8]
[327878035,1716574246420,-2846.28,0.00026301,8]
[327878036,1716574246429,-3577.07,0.00026301,8]
[327878037,1716574246438,-808.03,0.00026301,8]
[327878038,1716574246448,-500.0,0.00026301,8]
[327878039,1716574246457,-500.0,0.00026301,8]
[327878040,1716574246466,-506.88,0.00026301,8]
[327878041,1716574246475,-1250.13,0.00026301,8]
[327878042,1716574246484,-500.0,0.00026301,8]
[327878043,1716574246493,-205.87,0.00026301,8]
[327878044,1716574246503,-549.44,0.00026301,8]
[327878045,1716574246515,-553.03,0.00026301,8]
[327878046,1716574246524,-1250.38,0.00026301,8]
[327878047,1716574246533,-504.09,0.00026301,8]
[327878048,1716574246542,-489.36,0.00026301,8]
[327878049,1716574246552,-500.0,0.00026301,8]
[327878050,1716574246561,-626.0,0.00026301,8]
[327878051,1716574246570,-500.0,0.00026301,8]
[327878052,1716574246579,-839.12,0.00026301,8]
[327878053,1716574246588,-4212.77,0.00026301,8]
[327878054,1716574246597,-500.0,0.00026301,8]
[327878055,1716574246606,-500.0,0.00026301,8]
[327878056,1716574246615,-613.44,0.00026301,8]
[327878057,1716574246624,-4510.73,0.00026301,8]
[327878058,1716574246633,-1401.54,0.00026301,8]
[327878059,1716574246643,-500.0,0.00026301,8]
[327878060,1716574246652,-500.0,0.00026301,8]
[327878061,1716574246661,-3980.75777852,0.00026302,2]
[327878062,1716574246670,-281.86481366,0.00026302,2]
[327878063,1716574246680,-456.57692779,0.00026302,2]
[327878064,1716574246689,-155.65773314,0.00026302,2]
[327878065,1716574246698,-760.9951019,0.00026302,2]
[327878066,1716574246708,-314.83945112,0.00026302,2]
[327878067,1716574246717,-3373.78266972,0.00026302,2]
[327878068,1716574246726,-3632.73611165,0.00026302,2]
[327878069,1716574246736,-1000.0,0.00026319,2]
[327878070,1716574246746,-1000.0,0.00026328,2]
[327878071,1716574246755,-1000.0,0.00026335,2]
[327878072,1716574246764,-1000.0,0.00026352,2]
[327878073,1716574246773,-1000.0,0.0002638,2]
[327878074,1716574246783,-1000.0,0.00026384,2]
[327878075,1716574246792,-1000.0,0.00026386,2]
[327878076,1716574246802,-399.687,0.00026427,2]
[327878077,1716574246815,-1000.0,0.00026455,2]
[327878078,1716574246824,-1000.0,0.00026479,2]
[327878079,1716574246833,-573.3255498,0.00026501,2]
[327878080,1716574246842,-1000.0,0.00026509,2]
[327878081,1716574246854,-1000.0,0.00026533,2]
[327878082,1716574246863,-2195.32,0.00026574,17]
[327878083,1716574246873,-500.0,0.00026575,9]
[327878084,1716574246882,-500.0,0.00026575,9]
[327878085,1716574246894,-500.0,0.00026575,9]
[327878086,1716574246903,-500.0,0.00026575,9]
[327878087,1716574246913,-691.71,0.00026575,9]
[327878088,1716574246922,-500.0,0.00026575,9]
[327878089,1716574246931,-500.0,0.00026575,9]
[327878090,1716574246940,-587.64,0.00026575,9]
[327878091,1716574246949,-500.0,0.00026575,9]
[327878092,1716574246959,-500.0,0.00026575,9]
[327878093,1716574246968,-500.0,0.00026575,9]
[327878094,1716574246977,-634.77,0.00026575,9]
[327878095,1716574246986,-500.0,0.00026575,9]
[327878096,1716574246995,-500.0,0.00026575,9]
[327878097,1716574247006,-661.81,0.00026575,9]
[327878098,1716574247015,-500.0,0.00026575,9]
[327878099,1716574247024,-500.0,0.00026575,9]
[327878100,1716574247033,-2846.28,0.00026575,9]
[327878101,1716574247043,-3577.07,0.00026575,9]
[327878102,1716574247053,-808.03,0.00026575,9]
[327878103,1716574247062,-500.0,0.00026575,9]
[327878104,1716574247071,-500.0,0.00026575,9]
[327878105,1716574247080,-506.88,0.00026575,9]
[327878106,1716574247090,-1250.13,0.00026575,9]
[327878107,1716574247100,-500.0,0.00026575,9]
[327878108,1716574247111,-549.44,0.00026575,9]
[327878109,1716574247121,-553.03,0.00026575,9]
[327878110,1716574247131,-1250.38,0.00026575,9]
[327878111,1716574247140,-504.09,0.00026575,9]
[327878112,1716574247149,-500.0,0.00026575,9]
[327878113,1716574247159,-626.0,0.00026575,9]
[327878114,1716574247168,-500.0,0.00026575,9]
[327878115,1716574247178,-839.12,0.00026575,9]
[327878116,1716574247187,-4212.77,0.00026575,9]
[327878117,1716574247197,-475.12274633,0.00026575,9]
[327878136,1716574250137,-500.0,0.00019991,2]
[327878137,1716574250146,-585.48130899,0.00019991,2]
[327878139,1716574250155,-500.0,0.00019991,2]
[327878141,1716574250165,-500.0,0.00019991,2]
[327878143,1716574250175,-500.0,0.00019991,2]
[327878144,1716574250184,-282.67673431,0.00019991,2]
[327878146,1716574250193,-500.0,0.00019991,2]
[327878148,1716574250202,-500.0,0.00019991,2]
[327878150,1716574250211,-500.0,0.00019991,2]
[327878152,1716574250221,-500.0,0.00019991,2]
[327878154,1716574250230,-1130.45885872,0.00019991,2]
[327878155,1716574250239,-1130.45885872,0.00019991,2]
[327878156,1716574250249,-1130.45885872,0.00019991,2]
[327878157,1716574250259,-1130.45885872,0.00019991,2]
[327878158,1716574250269,-1130.45885872,0.00019991,2]
[327878159,1716574250278,-1130.45885872,0.00019991,2]
[327878160,1716574250287,-1130.45885872,0.00019991,2]
[327878161,1716574250296,-1130.45885872,0.00019991,2]
[327878162,1716574250305,-1130.45885872,0.00019991,2]
[327878163,1716574250314,-10516.31440065,0.00020913,2]
[327878164,1716574250323,-53001.97,0.00026565,3]
[327878165,1716574250333,-24.87725367,0.00026575,9]
[327878166,1716574250343,-500.0,0.00026575,9]
[327878167,1716574250352,-613.44,0.00026575,9]
[327878168,1716574250362,-4510.73,0.00026575,9]
[327878169,1716574250371,-1401.54,0.00026575,9]
[327878170,1716574250380,-500.0,0.00026575,9]
[327878171,1716574250390,-263.22,0.00026575,9]
[327878172,1716574250399,-656.92698403,0.000266,4]
[327878173,1716574250408,-500.0,0.00026849,10]
[327878174,1716574250417,-500.0,0.00026849,10]
[327878175,1716574250427,-500.0,0.00026849,10]
[327878176,1716574250436,-500.0,0.00026849,10]
[327878177,1716574250446,-691.71,0.00026849,10]
[327878178,1716574250455,-500.0,0.00026849,10]
[327878179,1716574250464,-500.0,0.00026849,10]
[327878180,1716574250474,-587.64,0.00026849,10]
[327878181,1716574250483,-500.0,0.00026849,10]
[327878182,1716574250492,-500.0,0.00026849,10]
[327878183,1716574250501,-500.0,0.00026849,10]
[327878184,1716574250512,-634.77,0.00026849,10]
[327878185,1716574250521,-573.09,0.00026849,10]
[327878186,1716574250650,-500.0,0.00026849,10]
[327878187,1716574250661,-661.81,0.00026849,10]
[327878188,1716574250670,-500.0,0.00026849,10]
[327878189,1716574250680,-500.0,0.00026849,10]
[327878190,1716574250690,-2846.28,0.00026849,10]
[327878191,1716574250699,-3577.07,0.00026849,10]
[327878192,1716574250710,-808.03,0.00026849,10]
[327878193,1716574250719,-500.0,0.00026849,10]
[327878194,1716574250729,-500.0,0.00026849,10]
[327878195,1716574250739,-506.88,0.00026849,10]
[327878196,1716574250749,-1250.13,0.00026849,10]
[327878197,1716574250760,-500.0,0.00026849,10]
[327878198,1716574250771,-549.44,0.00026849,10]
[327878199,1716574250781,-553.03,0.00026849,10]
[327878200,1716574250791,-1250.38,0.00026849,10]
[327878201,1716574250801,-504.09,0.00026849,10]
[327878202,1716574250815,-500.0,0.00026849,10]
[327878203,1716574250825,-626.0,0.00026849,10]
[327878204,1716574250835,-500.0,0.00026849,10]
[327878205,1716574250847,-839.12,0.00026849,10]
[327878206,1716574250857,-4212.77,0.00026849,10]
[327878207,1716574250867,-500.0,0.00026849,10]
[327878208,1716574250876,-500.0,0.00026849,10]
[327878209,1716574250888,-613.44,0.00026849,10]
[327878210,1716574250898,-4510.73,0.00026849,10]
[327878211,1716574250908,-1401.54,0.00026849,10]
[327878212,1716574250918,-500.0,0.00026849,10]
[327878213,1716574250927,-307.7478452,0.00026944,2]
[327878214,1716574250937,-315.0,0.00027,2]
[327878215,1716574250948,-2195.32,0.00027091,18]
[327878216,1716574250958,-624.5596692,0.00027092,2]
[327878217,1716574250969,-1012.10349864,0.00027123,2]
[327878218,1716574250979,-500.0,0.00027123,11]
[327878219,1716574250990,-163.44,0.00027123,11]
[327878220,1716574250998,-500.0,0.00027123,11]
[327878221,1716574251009,-500.0,0.00027123,11]
[327878222,1716574251019,-691.71,0.00027123,11]
[327878223,1716574251028,-500.0,0.00027123,11]
[327878224,1716574251038,-618.71577417,0.00027123,11]
[327878225,1716574251048,-587.64,0.00027123,11]
[327878226,1716574251058,-576.16625838,0.00027123,11]
[327878227,1716574251068,-500.0,0.00027123,11]
[327878228,1716574251079,-500.0,0.00027123,11]
[327878229,1716574251088,-634.77,0.00027123,11]
[327878230,1716574251098,-500.0,0.00027123,11]
[327878231,1716574251108,-661.81,0.00027123,11]
[327878232,1716574251117,-500.0,0.00027123,11]
[327878233,1716574251128,-500.0,0.00027123,11]
[327878234,1716574251138,-2846.28,0.00027123,11]
[327878235,1716574251147,-3577.07,0.00027123,11]
[327878236,1716574251157,-808.03,0.00027123,11]
[327878237,1716574251168,-500.0,0.00027123,11]
[327878238,1716574251177,-500.0,0.00027123,11]
[327878239,1716574251187,-506.88,0.00027123,11]
[327878240,1716574251198,-1250.13,0.00027123,11]
[327878241,1716574251208,-500.0,0.00027123,11]
[327878242,1716574251218,-549.44,0.00027123,11]
[327878243,1716574251228,-553.03,0.00027123,11]
[327878244,1716574251238,-1250.38,0.00027123,11]
[327878245,1716574251248,-504.09,0.00027123,11]
[327878246,1716574251259,-500.0,0.00027123,11]
[327878247,1716574251268,-626.0,0.00027123,11]
[327878248,1716574251278,-500.0,0.00027123,11]
[327878249,1716574251288,-839.12,0.00027123,11]
[327878250,1716574251297,-4212.77,0.00027123,11]
[327878251,1716574251307,-500.0,0.00027123,11]
[327878252,1716574251317,-500.0,0.00027123,11]
[327878253,1716574251327,-613.44,0.00027123,11]
[327878254,1716574251337,-4510.73,0.00027123,11]
[327878255,1716574251346,-1401.54,0.00027123,11]
[327878256,1716574251356,-500.0,0.00027123,11]
[327878257,1716574251365,-151.0,0.00027123,2]
[327878258,1716574251375,-151.0,0.00027123,2]
[327878259,1716574251385,-1137.40253748,0.0002739,2]
[327878260,1716574251394,-1753.48856014,0.00027393,2]
[327878261,1716574251404,-2195.32,0.00027396,19]
[327878262,1716574251414,-500.0,0.00027397,12]
[327878263,1716574251423,-500.0,0.00027397,12]
[327878264,1716574251433,-500.0,0.00027397,12]
[327878265,1716574251443,-691.71,0.00027397,12]
[327878266,1716574251453,-500.0,0.00027397,12]
[327878267,1716574251463,-587.64,0.00027397,12]
[327878268,1716574251472,-500.0,0.00027397,12]
[327878269,1716574251481,-500.0,0.00027397,12]
[327878270,1716574251491,-634.77,0.00027397,12]
[327878271,1716574251500,-500.0,0.00027397,12]
[327878272,1716574251512,-661.81,0.00027397,12]
[327878273,1716574251521,-500.0,0.00027397,12]
[327878274,1716574251531,-500.0,0.00027397,12]
[327878275,1716574251542,-2846.28,0.00027397,12]
[327878276,1716574251552,-3577.07,0.00027397,12]
[327878277,1716574251562,-808.03,0.00027397,12]
[327878278,1716574251571,-500.0,0.00027397,12]
[327878279,1716574251581,-500.0,0.00027397,12]
[327878280,1716574251591,-506.88,0.00027397,12]
[327878281,1716574251601,-1250.13,0.00027397,12]
[327878282,1716574251611,-500.0,0.00027397,12]
[327878283,1716574251620,-549.44,0.00027397,12]
[327878284,1716574251630,-553.03,0.00027397,12]
[327878285,1716574251640,-1250.38,0.00027397,12]
[327878286,1716574251651,-504.09,0.00027397,12]
[327878287,1716574251660,-500.0,0.00027397,12]
[327878288,1716574251670,-626.0,0.00027397,12]
[327878289,1716574251679,-500.0,0.00027397,12]
[327878290,1716574251689,-839.12,0.00027397,12]
[327878291,1716574251699,-4212.77,0.00027397,12]
[327878292,1716574251709,-500.0,0.00027397,12]
[327878293,1716574251719,-500.0,0.00027397,12]
[327878294,1716574251728,-613.44,0.00027397,12]
[327878295,1716574251738,-4510.73,0.00027397,12]
[327878296,1716574251747,-1401.54,0.00027397,12]
[327878297,1716574251758,-500.0,0.00027397,12]
[327878298,1716574251769,-183.48019745,0.00027397,2]
[327878299,1716574251779,-10807.94602062,0.000274,5]
[327878300,1716574251789,-388.0,0.000274,2]
[327878301,1716574251798,-151.0,0.000274,2]
[327878302,1716574251814,-338.343219,0.000274,2]
[327878303,1716574251824,-338.343219,0.000274,2]
[327878304,1716574251834,-198.757831,0.000274,2]
[327878305,1716574251844,-198.757831,0.000274,2]
[327878306,1716574251853,-154.3744982,0.00027463,2]
[327878307,1716574251863,-153.0,0.00027463,2]
[327878308,1716574251873,-4138.51451687,0.00027535,2]
[327878309,1716574251885,-281.0,0.000276,2]
[327878310,1716574251894,-408.8715215,0.00027608,2]
[327878311,1716574251905,-2195.32,0.0002767,20]
[327878312,1716574251914,-500.0,0.00027671,13]
[327878313,1716574251924,-500.0,0.00027671,13]
[327878314,1716574251934,-500.0,0.00027671,13]
[327878315,1716574251944,-691.71,0.00027671,13]
[327878316,1716574251954,-500.0,0.00027671,13]
[327878317,1716574251964,-587.64,0.00027671,13]
[327878318,1716574251974,-500.0,0.00027671,13]
[327878319,1716574251984,-500.0,0.00027671,13]
[327878320,1716574251993,-634.77,0.00027671,13]
[327878321,1716574252003,-151.0,0.00027671,2]
[327878322,1716574252016,-151.0,0.00027671,2]
[327878323,1716574252025,-151.0,0.00027671,2]
[327878324,1716574252039,-151.0,0.00027671,2]
[327878325,1716574252049,-151.0,0.00027671,2]
[327878326,1716574252059,-750.793495,0.00027671,2]
[327878327,1716574252068,-750.793495,0.00027671,2]
[327878328,1716574252078,-500.0,0.00027671,13]
[327878329,1716574252088,-661.81,0.00027671,13]
[327878330,1716574252098,-383.535937,0.00027671,2]
[327878331,1716574252108,-383.535937,0.00027671,2]
[327878332,1716574252117,-500.0,0.00027671,13]
[327878333,1716574252126,-151.0,0.00027671,2]
[327878334,1716574252136,-151.0,0.00027671,2]
[327878335,1716574252146,-151.0,0.00027671,2]
[327878336,1716574252155,-500.0,0.00027671,13]
[327878337,1716574252166,-151.0,0.00027671,2]
[327878338,1716574252175,-151.0,0.00027671,2]
[327878339,1716574252184,-151.0,0.00027671,2]
[327878340,1716574252194,-151.0,0.00027671,2]
[327878341,1716574252203,-2846.28,0.00027671,13]
[327878342,1716574252212,-151.0,0.00027671,2]
[327878343,1716574252222,-151.0,0.00027671,2]
[327878344,1716574252231,-3577.07,0.00027671,13]
[327878345,1716574252240,-808.03,0.00027671,13]
[327878346,1716574252249,-280.782576,0.00027671,2]
[327878347,1716574252261,-151.0,0.00027671,2]
[327878348,1716574252270,-581.375839,0.00027671,2]
[327878349,1716574252279,-280.782576,0.00027671,2]
[327878350,1716574252287,-581.375839,0.00027671,2]
[327878351,1716574252296,-500.0,0.00027671,13]
[327878352,1716574252305,-151.0,0.00027671,2]
[327878353,1716574252314,-500.0,0.00027671,13]
[327878354,1716574252325,-151.0,0.00027671,2]
[327878355,1716574252334,-151.0,0.00027671,2]
[327878356,1716574252344,-506.88,0.00027671,13]
[327878357,1716574252353,-1250.13,0.00027671,13]
[327878358,1716574252363,-151.0,0.00027671,2]
[327878359,1716574252372,-500.0,0.00027671,13]
[327878360,1716574252381,-151.0,0.00027671,2]
[327878361,1716574252390,-549.44,0.00027671,13]
[327878362,1716574252400,-553.03,0.00027671,13]
[327878363,1716574252409,-1250.38,0.00027671,13]
[327878364,1716574252418,-504.09,0.00027671,13]
[327878365,1716574252427,-500.0,0.00027671,13]
[327878366,1716574252436,-626.0,0.00027671,13]
[327878367,1716574252445,-500.0,0.00027671,13]
[327878368,1716574252455,-151.0,0.00027671,2]
[327878369,1716574252464,-839.12,0.00027671,13]
[327878370,1716574252473,-4212.77,0.00027671,13]
[327878371,1716574252482,-500.0,0.00027671,13]
[327878372,1716574252491,-500.0,0.00027671,13]
[327878373,1716574252500,-151.0,0.00027671,2]
[327878374,1716574252512,-613.44,0.00027671,13]
[327878375,1716574252521,-4510.73,0.00027671,13]
[327878376,1716574252530,-151.0,0.00027671,2]
[327878377,1716574252539,-1401.54,0.00027671,13]
[327878378,1716574252549,-704.939248,0.00027671,2]
[327878379,1716574252558,-704.939248,0.00027671,2]
[327878380,1716574252567,-500.0,0.00027671,13]
[327878381,1716574252576,-315.0,0.00027671,2]
[327878382,1716574252586,-193.967947,0.00027684,2]
[327878383,1716574252595,-591.0,0.000277,2]
[327878384,1716574252604,-3599.72927347,0.000278,2]
[327878385,1716574252614,-160.0,0.000279,2]
[327878386,1716574252623,-2195.32,0.00027944,21]
[327878387,1716574252633,-2195.32,0.00027944,21]
[327878388,1716574252642,-2195.32,0.00027944,21]
[327878389,1716574252652,-2195.32,0.00027944,21]
[327878390,1716574252661,-2195.34917344,0.00027944,21]
[327878391,1716574252671,-1824.81,0.00027945,2]
[327878392,1716574252680,-500.0,0.00027945,14]
[327878393,1716574252689,-500.0,0.00027945,14]
[327878394,1716574252699,-500.0,0.00027945,14]
[327878395,1716574252708,-691.71,0.00027945,14]
[327878396,1716574252717,-500.0,0.00027945,14]
[327878397,1716574252726,-587.64,0.00027945,14]
[327878398,1716574252736,-500.0,0.00027945,14]
[327878399,1716574252745,-500.0,0.00027945,14]
[327878400,1716574252755,-151.0,0.00027945,2]
[327878401,1716574252766,-634.77,0.00027945,14]
[327878402,1716574252775,-500.0,0.00027945,14]
[327878403,1716574252785,-661.81,0.00027945,14]
[327878404,1716574252794,-500.0,0.00027945,14]
[327878405,1716574252804,-500.0,0.00027945,14]
[327878406,1716574252820,-2846.28,0.00027945,14]
[327878407,1716574252829,-3577.07,0.00027945,14]
[327878408,1716574252839,-808.03,0.00027945,14]
[327878409,1716574252849,-500.0,0.00027945,14]
[327878410,1716574252859,-220.0,0.00027945,14]
[327878411,1716574252869,-506.88,0.00027945,14]
[327878412,1716574252879,-1250.13,0.00027945,14]
[327878413,1716574252889,-500.0,0.00027945,14]
[327878414,1716574252900,-553.03,0.00027945,14]
[327878415,1716574252909,-1250.38,0.00027945,14]
[327878416,1716574252918,-504.09,0.00027945,14]
[327878417,1716574252928,-500.0,0.00027945,14]
[327878418,1716574252937,-626.0,0.00027945,14]
[327878419,1716574252947,-500.0,0.00027945,14]
[327878420,1716574252956,-839.12,0.00027945,14]
[327878421,1716574252966,-4212.77,0.00027945,14]
[327878422,1716574252976,-500.0,0.00027945,14]